lending/lending_fUSD_20260312
["ID","MTS","AMOUNT","RATE_DAILY","PERIOD"]
[408246893,1773309047069,-500.0,0.00019999,2]
[408246894,1773309047081,-201.37859139,0.00019999,2]
[408246895,1773309047091,-500.0,0.00019999,2]
[408246896,1773309047101,-500.0,0.00019999,2]
[408246897,1773309047110,-500.0,0.00019999,2]
[408246898,1773309047119,-500.0,0.00019999,2]
[408246899,1773309047130,-500.0,0.00019999,2]
[408246900,1773309047139,-500.0,0.00019999,2]
[408246901,1773309047149,-500.0,0.00019999,2]
[408246902,1773309047158,-500.0,0.00019999,2]
[408246903,1773309047168,-500.0,0.00019999,2]
[408246904,1773309047177,-175.79749323,0.00019999,2]
[408246905,1773309047186,-500.0,0.00019999,2]
[408246906,1773309047195,-500.0,0.00019999,2]
[408246907,1773309047205,-500.0,0.00019999,2]
[408246908,1773309047214,-500.0,0.00019999,2]
[408246909,1773309047223,-513.50885744,0.00019999,2]
[408246910,1773309047232,-500.0,0.00019999,2]
[408246911,1773309047241,-500.0,0.00019999,2]
[408246912,1773309047250,-500.0,0.00019999,2]
[408246913,1773309047260,-500.0,0.00019999,2]
[408246914,1773309047269,-500.0,0.00019999,2]
[408246915,1773309047279,-500.0,0.00019999,2]
[408246916,1773309047288,-500.0,0.00019999,2]
[408246917,1773309047297,-500.0,0.00019999,2]
[408246918,1773309047306,-500.0,0.00019999,2]
[408246919,1773309047315,-500.0,0.00019999,2]
[408246920,1773309047325,-500.0,0.00019999,2]
[408246921,1773309047334,-500.0,0.00019999,2]
[408246922,1773309047343,-500.0,0.00019999,2]
[408246923,1773309047352,-500.0,0.00019999,2]
[408246924,1773309047361,-511.29246418,0.00019999,2]
[408246925,1773309047370,-513.58200217,0.00019999,2]
[408246926,1773309047379,-228.050008,0.00019999,2]
[408246927,1773309047388,-500.0,0.00019999,2]
[408246928,1773309047398,-500.0,0.00019999,2]
[408246929,1773309047407,-500.0,0.00019999,2]
[408246930,1773309047416,-500.0,0.00019999,2]
[408246931,1773309047425,-500.0,0.00019999,2]
[408246932,1773309047434,-500.0,0.00019999,2]
[408246933,1773309047443,-228.050008,0.00019999,2]
[408246934,1773309047452,-228.050008,0.00019999,2]
[408246935,1773309047462,-228.050008,0.00019999,2]
[408246936,1773309047471,-500.0,0.00019999,2]
[408246937,1773309047480,-500.0,0.00019999,2]
[408246938,1773309047489,-500.0,0.00019999,2]
[408246939,1773309047499,-500.0,0.00019999,2]
[408246940,1773309047509,-500.0,0.00019999,2]
[408246941,1773309047519,-500.0,0.00019999,2]
[408246942,1773309047529,-151.0,0.00019999,2]
[408246943,1773309047538,-500.0,0.00019999,2]
[408246944,1773309047548,-500.0,0.00019999,2]
[408246945,1773309047557,-500.0,0.00019999,2]
[408246946,1773309047566,-600.49565647,0.00019999,2]
[408246947,1773309047575,-151.0,0.00019999,2]
[408246948,1773309047584,-151.0,0.00019999,2]
[408246949,1773309047594,-237.075743,0.00019999,2]
[408246950,1773309047603,-237.075743,0.00019999,2]
[408246951,1773309047613,-237.075743,0.00019999,2]
[408246952,1773309047622,-237.075743,0.00019999,2]
[408246953,1773309047633,-500.0,0.00019999,2]
[408246954,1773309047642,-500.0,0.00019999,2]
[408246955,1773309047651,-500.0,0.00019999,2]
[408246956,1773309047660,-500.0,0.00019999,2]
[408246957,1773309047669,-500.0,0.00019999,2]
[408246958,1773309047678,-500.0,0.00019999,2]
[408246959,1773309047688,-500.0,0.00019999,2]
[408246960,1773309047699,-500.0,0.00019999,2]
[408246961,1773309047709,-156.845434,0.00019999,2]
[408246962,1773309047719,-500.0,0.00019999,2]
[408246963,1773309047729,-500.0,0.00019999,2]
[408246964,1773309047740,-500.0,0.00019999,2]
[408246965,1773309047750,-538.90720653,0.00019999,2]
[408246966,1773309047760,-500.0,0.00019999,2]
[408246967,1773309047773,-509.69645658,0.00019999,2]
[408246968,1773309047783,-500.0,0.00019999,2]
[408246969,1773309047792,-500.0,0.00019999,2]
[408246970,1773309047802,-500.0,0.00019999,2]
[408246971,1773309047811,-151.0,0.00019999,2]
[408246972,1773309047820,-500.0,0.00019999,2]
[408246973,1773309047829,-500.0,0.00019999,2]
[408246974,1773309047839,-500.0,0.00019999,2]
[408246975,1773309047852,-151.0,0.00019999,2]
[408246976,1773309047863,-151.0,0.00019999,2]
[408246977,1773309047873,-151.0,0.00019999,2]
[408246978,1773309047883,-500.0,0.00019999,2]
[408246979,1773309047893,-516.84230424,0.00019999,2]
[408246980,1773309047902,-171.40088109,0.00019999,2]
[408246981,1773309047912,-315.42445231,0.00019999,2]
[408246982,1773309047922,-263.2324696,0.00019999,2]
[408246983,1773309047932,-875.0,0.0002,2]
[408246984,1773309047941,-661.0,0.0002,2]
[408246985,1773309047951,-685.0,0.0002,2]
[408246986,1773309047961,-500.0,0.0002,2]
[408246987,1773309047971,-500.0,0.0002,2]
[408246988,1773309047980,-174.16028169,0.0002,2]
[408246989,1773309047989,-521.0,0.0002,2]
[408246990,1773309047998,-13258.54824229,0.0002,2]
[408246991,1773309048429,-500.0,0.00019677,2]
[408246992,1773309048439,-18473.74619042,0.0002,2]
[408246993,1773309048453,-1920.08301034,0.0002,2]
[408246994,1773309048574,-3352.99938903,0.0002,2]
[408246995,1773309089437,437.15,9.47e-05,2]
[408246996,1773309089643,437.15,9.969e-05,2]
[408246997,1773309089850,437.15,0.00010467,2]
[408246998,1773309090054,437.15,0.00010966,2]
[408246999,1773309090273,437.15,0.00011464,2]
[408247000,1773309090476,437.15,0.00011963,2]
[408247001,1773309090678,437.15,0.00012461,2]
[408247002,1773309091078,437.15,0.00012959,2]
[408247003,1773309091289,437.15,0.00013458,2]
[408247004,1773309091492,437.15,0.00013956,2]
[408247005,1773309091712,437.15,0.00014455,2]
[408247006,1773309091911,437.15,0.00014953,2]
[408247007,1773309490427,155.0,0.00015,2]
[408247009,1773309603528,274.0,0.00015,2]
[408247011,1773309646869,-159.0,0.00015,2]
[408247012,1773309646896,-201.0,0.00015,2]
[408247013,1773309661903,1517.64,0.000153,2]
[408247014,1773309663841,-437.15,0.00015452,2]
[408247015,1773309663870,-250.0,0.00015701,2]
[408247016,1773309663898,-437.15,0.0001595,2]
[408247017,1773309663926,-437.15,0.00016449,2]
[408247018,1773309663955,-1200.0,0.00016499,2]
[408247019,1773309663984,-250.0,0.000165,2]
[408247020,1773309664013,-1203.36012819,0.000165,2]
[408247021,1773309666815,-1570.38974362,0.000165,2]
[408247022,1773309666852,-2500.0,0.000165,2]
[408247023,1773309669887,-2500.0,0.000165,2]
[408247024,1773309669923,-2500.0,0.000165,2]
[408247025,1773309672835,-1318.80427732,0.000165,2]
[408247026,1773309672875,-500.0,0.000165,2]
[408247027,1773309749765,511.09234778,0.000154,2]
[408247031,1773309755481,5851.30909758,9.5e-05,3]
[408247032,1773309755507,88662.05624405,9.5e-05,3]
[408247038,1773310231251,-172.24095294,0.00016899,2]
[408247041,1773310231261,-293.0,0.00016899,2]
[408247043,1773310231271,-437.15,0.00016947,2]
[408247045,1773310231280,-261.16889186,0.00016983,2]
[408247049,1773310231306,-1505.17048058,0.00016983,2]
[408247051,1773310231316,-150.0,0.0001699,2]
[408247053,1773310231325,-1200.0,0.00016998,2]
[408247055,1773310231334,-550.0,0.00016999,2]
[408247057,1773310231343,-300.0,0.00016999,2]
[408247059,1773310231352,-191.93774909,0.00017,2]
[408247061,1773310231363,-13743.86225092,0.00017,2]
[408247063,1773310231374,-508.0,0.00017,2]
[408247064,1773310231383,-162.05,0.00017,2]
[408247065,1773310231393,-1554.65,0.00017015,2]
[408247066,1773310231404,-1136.12,0.00017018,2]
[408247067,1773310231413,-1059.08,0.00017045,2]
[408247068,1773310231423,-1151.29,0.00017102,2]
[408247069,1773310231432,-1288.14,0.00017178,2]
[408247070,1773310231441,-1000.0,0.0001726,2]
[408247071,1773310231451,-500.0,0.00017342,2]
[408247072,1773310231460,-2747.77252795,0.00017438,2]
[408247073,1773310231469,-437.15,0.00017445,2]
[408247074,1773310231478,-1788.0,0.00017534,2]
[408247075,1773310231488,-1500.0,0.00017607,2]
[408247076,1773310231499,-1288.14,0.00017608,2]
[408247077,1773310231509,-500.0,0.00017616,2]
[408247078,1773310231518,-1832.43,0.00017718,2]
[408247080,1773310231527,-500.0,0.00017797,2]
[408247082,1773310231537,-437.15,0.00017944,2]
[408247084,1773310231546,-1288.14,0.00018037,2]
[408247086,1773310231555,-16445.9433,0.00018118,2]
[408247088,1773310231565,-166.66,0.00018127,2]
[408247090,1773310231574,-500.0,0.00018207,2]
[408247092,1773310231583,-500.0,0.00018207,2]
[408247094,1773310231593,-200.0,0.00018207,2]
[408247096,1773310231602,-500.0,0.00018207,2]
[408247098,1773310231611,-500.0,0.00018207,2]
[408247100,1773310231621,-500.0,0.00018207,2]
[408247102,1773310231630,-510.84283105,0.00018207,2]
[408247104,1773310231638,-500.0,0.00018207,2]
[408247106,1773310231647,-151.0,0.00018207,2]
[408247108,1773310231656,-500.0,0.00018207,2]
[408247110,1773310231665,-151.0,0.00018207,2]
[408247112,1773310231673,-500.0,0.00018207,2]
[408247113,1773310231682,-151.0,0.00018207,2]
[408247114,1773310231691,-151.0,0.00018207,2]
[408247115,1773310231701,-500.0,0.00018207,2]
[408247116,1773310231712,-151.0,0.00018207,2]
[408247117,1773310231722,-500.0,0.00018207,2]
[408247118,1773310231734,-500.0,0.00018207,2]
[408247119,1773310231745,-151.0,0.00018207,2]
[408247120,1773310231754,-151.0,0.00018207,2]
[408247121,1773310231763,-500.0,0.00018207,2]
[408247122,1773310231772,-500.0,0.00018207,2]
[408247123,1773310231780,-151.0,0.00018207,2]
[408247124,1773310231789,-151.0,0.00018207,2]
[408247125,1773310231798,-500.0,0.00018207,2]
[408247126,1773310231807,-500.0,0.00018207,2]
[408247127,1773310231816,-151.0,0.00018207,2]
[408247128,1773310231825,-151.0,0.00018207,2]
[408247129,1773310231834,-500.0,0.00018207,2]
[408247130,1773310231843,-500.0,0.00018207,2]
[408247131,1773310231852,-151.0,0.00018207,2]
[408247132,1773310231861,-151.0,0.00018207,2]
[408247133,1773310231870,-500.0,0.00018207,2]
[408247134,1773310231879,-151.0,0.00018207,2]
[408247135,1773310231888,-151.0,0.00018207,2]
[408247136,1773310231897,-500.0,0.00018207,2]
[408247137,1773310231906,-151.0,0.00018207,2]
[408247138,1773310231915,-151.0,0.00018207,2]
[408247139,1773310231923,-500.0,0.00018207,2]
[408247140,1773310231932,-151.0,0.00018207,2]
[408247141,1773310231942,-151.0,0.00018207,2]
[408247142,1773310231951,-500.0,0.00018207,2]
[408247143,1773310231960,-151.0,0.00018207,2]
[408247144,1773310231968,-151.0,0.00018207,2]
[408247145,1773310231977,-500.0,0.00018207,2]
[408247146,1773310231987,-151.0,0.00018207,2]
[408247147,1773310231995,-500.0,0.00018207,2]
[408247148,1773310232004,-151.0,0.00018207,2]
[408247149,1773310232013,-500.0,0.00018207,2]
[408247150,1773310232023,-151.0,0.00018207,2]
[408247151,1773310232032,-500.0,0.00018207,2]
[408247152,1773310232041,-151.0,0.00018207,2]
[408247153,1773310232050,-151.0,0.00018207,2]
[408247154,1773310232059,-151.0,0.00018207,2]
[408247155,1773310232067,-151.0,0.00018207,2]
[408247156,1773310232076,-151.0,0.00018207,2]
[408247157,1773310232085,-151.0,0.00018207,2]
[408247158,1773310232095,-151.0,0.00018207,2]
[408247159,1773310232104,-151.0,0.00018207,2]
[408247160,1773310232113,-151.0,0.00018207,2]
[408247161,1773310232122,-25371.99136914,0.00018218,2]
[408247162,1773310232136,-18332.66033545,0.00018218,2]
[408247163,1773310232147,-8123.11962087,0.00018218,2]
[408247166,1773310237323,-265.85581581,0.00018218,2]
[408247167,1773310237429,-4277.24969355,0.00018218,2]
[408247168,1773310237439,-9389.29340355,0.00018233,2]
[408247169,1773310237483,-948.74365451,0.00018233,2]
[408247170,1773310237494,-11989.32680078,0.00018249,2]
[408247171,1773310237504,-501.3548295,0.00018273,2]
[408247172,1773310237514,-503.26645979,0.00018273,2]
[408247173,1773310237523,-500.0,0.00018273,2]
[408247174,1773310237532,-500.0,0.00018273,2]
[408247175,1773310237541,-500.0,0.00018273,2]
[408247176,1773310237551,-218.67586493,0.00018273,2]
[408247177,1773310237569,-388.60866893,0.00018273,2]
[408247178,1773310237591,-500.8419294,0.00018273,2]
[408247179,1773310237600,-504.05420061,0.00018273,2]
[408247181,1773310237610,-1000.0,0.00018321,2]
[408247183,1773310237619,-500.0,0.00018329,2]
[408247185,1773310237628,-151.0,0.0001833,2]
[408247187,1773310237638,-500.0,0.00018333,2]
[408247189,1773310237647,-500.0,0.00018333,2]
[408247191,1773310237656,-500.0,0.00018333,2]
[408247193,1773310237665,-500.0,0.00018333,2]
[408247195,1773310237675,-341.277743,0.00018333,2]
[408247197,1773310237683,-341.277743,0.00018333,2]
[408247199,1773310237693,-341.277743,0.00018333,2]
[408247200,1773310237706,-341.277743,0.00018333,2]
[408247202,1773310237715,-500.0,0.00018333,2]
[408247204,1773310237725,-500.0,0.00018333,2]
[408247206,1773310237734,-500.0,0.00018333,2]
[408247208,1773310237743,-500.0,0.00018333,2]
[408247210,1773310237752,-500.0,0.00018333,2]
[408247212,1773310237761,-500.0,0.00018333,2]
[408247214,1773310237771,-151.0,0.00018333,2]
[408247216,1773310237780,-507.77819291,0.00018333,2]
[408247218,1773310237788,-500.0,0.00018333,2]
[408247220,1773310237797,-500.0,0.00018333,2]
[408247222,1773310237807,-500.0,0.00018333,2]
[408247225,1773310237816,-500.0,0.00018333,2]
[408247227,1773310237826,-500.0,0.00018333,2]
[408247229,1773310237835,-500.0,0.00018333,2]
[408247231,1773310237844,-500.0,0.00018333,2]
[408247233,1773310237853,-254.27,0.0001834,2]
[408247235,1773310237862,-500.0,0.00018373,2]
[408247237,1773310237871,-505.86891744,0.00018373,2]
[408247239,1773310237881,-500.48646595,0.00018373,2]
[408247241,1773310237890,-253.23,0.00018395,2]
[408247243,1773310237899,-856.0,0.000184,2]
[408247245,1773310237908,-437.15,0.00018442,2]
[408247247,1773310237919,-388.01689242,0.00018447,2]
[408247248,1773310237928,-1288.14,0.00018467,2]
[408247250,1773310237937,-166.66,0.00018508,2]
[408247252,1773310237946,-420.0,0.00018567,2]
[408247254,1773310237955,-249.46621933,0.00018589,2]
[408247256,1773310237963,-250.0,0.00018589,2]
[408247258,1773310237972,-1680.0,0.00018658,2]
[408247260,1773310237982,-354.67322239,0.00018703,2]
[408247262,1773310237991,-200.0,0.00018755,2]
[408247264,1773310237999,-4001.8,0.00018802,2]
[408247266,1773310238009,-1667.60653456,0.0001885,2]
[408247268,1773310238018,-152.08554862,0.0001885,2]
[408247270,1773310238027,-500.0,0.0001885,2]
[408247272,1773310238036,-414.74181684,0.0001885,2]
[408247274,1773310238045,-174.61919141,0.0001885,2]
[408247276,1773310238054,-166.66,0.0001889,2]
[408247278,1773310238063,-1288.14,0.00018896,2]
[408247280,1773310238072,-418.92,0.00018901,2]
[408247282,1773310238081,-359.0,0.00018918,2]
[408247284,1773310238090,-437.15,0.00018941,2]
[408247286,1773310238099,-151.0,0.00018969,2]
[408247288,1773310238108,-151.0,0.00018969,2]
[408247290,1773310238118,-10338.03705797,0.00018969,2]
[408247292,1773310238127,-500.0,0.00018982,2]
[408247294,1773310238140,-500.0,0.00018982,2]
[408247296,1773310238149,-398.36953013,0.00018982,2]
[408247298,1773310238159,-500.0,0.00018982,2]
[408247300,1773310238167,-500.0,0.00018982,2]
[408247302,1773310238178,-500.0,0.00018982,2]
[408247304,1773310238187,-500.0,0.00018982,2]
[408247306,1773310238195,-500.0,0.00018982,2]
[408247308,1773310238205,-500.0,0.00018982,2]
[408247310,1773310238215,-239.15016876,0.00018982,2]
[408247312,1773310238223,-500.0,0.00018982,2]
[408247314,1773310238234,-500.0,0.00018982,2]
[408247316,1773310238243,-500.0,0.00018982,2]
[408247318,1773310238253,-500.0,0.00018982,2]
[408247320,1773310238262,-500.0,0.00018982,2]
[408247322,1773310238271,-500.0,0.00018982,2]
[408247324,1773310238281,-500.0,0.00018982,2]
[408247326,1773310238289,-500.0,0.00018982,2]
[408247328,1773310238298,-500.0,0.00018982,2]
[408247329,1773310238307,-500.0,0.00018982,2]
[408247331,1773310238316,-500.0,0.00018982,2]
[408247333,1773310238325,-500.0,0.00018982,2]
[408247334,1773310238335,-500.0,0.00018982,2]
[408247335,1773310238343,-500.0,0.00018982,2]
[408247336,1773310238353,-500.0,0.00018982,2]
[408247337,1773310238362,-500.0,0.00018982,2]
[408247338,1773310238371,-500.0,0.00018982,2]
[408247339,1773310238380,-500.0,0.00018982,2]
[408247340,1773310238389,-500.0,0.00018982,2]
[408247341,1773310238398,-500.0,0.00018982,2]
[408247342,1773310238407,-500.0,0.00018982,2]
[408247343,1773310238416,-11989.3268007,0.00018983,2]
[408247344,1773310238425,-359.0,0.00018985,2]
[408247345,1773310238434,-848.0,0.0001904,2]
[408247346,1773310238443,-168.0,0.00019137,2]
[408247347,1773310238452,-963.0536712,0.00019155,2]
[408247348,1773310238462,-5757.0556525,0.00019155,2]
[408247349,1773310238471,-417.735402,0.00019178,2]
[408247350,1773310238480,-417.735402,0.00019178,2]
[408247351,1773310238489,-417.735402,0.00019178,2]
[408247352,1773310238506,-417.735402,0.00019178,2]
[408247353,1773310238515,-2000.0,0.000192,2]
[408247354,1773310238525,-2000.0,0.000192,2]
[408247355,1773310238535,-166.66,0.00019272,2]
[408247356,1773310238544,-200.0,0.00019303,2]
[408247357,1773310238553,-168.0,0.00019412,2]
[408247358,1773310238562,-620.0,0.00019474,2]
[408247359,1773310238571,-1043.0,0.00019474,2]
[408247360,1773310238581,-160.0,0.00019501,2]
[408247361,1773310238590,-2790.562,0.00019557,2]
[408247362,1773310238599,-174.23756161,0.00019557,2]
[408247363,1773310238609,-168.0,0.00019567,2]
[408247364,1773310238618,-157.78082569,0.00019569,2]
[408247365,1773310238627,-1280.0,0.00019624,2]
[408247366,1773310238637,-922.0,0.00019624,2]
[408247367,1773310238646,-1213.0,0.00019624,2]
[408247368,1773310238655,-414.0,0.00019624,2]
[408247370,1773310238665,-1302.769,0.00019624,2]
[408247371,1773310238674,-168.0,0.00019632,2]
[408247372,1773310238683,-166.66,0.00019653,2]
[408247373,1773310238691,-4033.94,0.00019695,2]
[408247374,1773310238701,-151.0,0.00019705,2]
[408247375,1773310238710,-151.0,0.00019705,2]
[408247376,1773310238719,-226.147649,0.00019705,2]
[408247377,1773310238728,-151.0,0.00019705,2]
[408247378,1773310238737,-151.0,0.00019705,2]
[408247379,1773310238746,-151.0,0.00019705,2]
[408247380,1773310238755,-151.0,0.00019705,2]
[408247381,1773310238765,-10338.03705797,0.00019705,2]
[408247382,1773310238774,-11989.3268007,0.00019718,2]
[408247383,1773310238783,-444.0,0.00019726,2]
[408247384,1773310238792,-500.0,0.00019726,2]
[408247385,1773310238801,-500.0,0.00019726,2]
[408247386,1773310238810,-500.0,0.00019726,2]
[408247387,1773310238819,-500.0,0.0001973,2]
[408247388,1773310238827,-500.0,0.0001973,2]
[408247389,1773310238837,-151.0,0.0001973,2]
[408247390,1773310238847,-151.0,0.0001973,2]
[408247391,1773310238856,-151.0,0.0001973,2]
[408247392,1773310238865,-151.0,0.0001973,2]
[408247393,1773310238874,-444.0,0.00019781,2]
[408247394,1773310238883,-334.71739428,0.00019781,2]
[408247395,1773310238897,-165.28260572,0.00019781,2]
[408247396,1773310238906,-500.0,0.00019781,2]
[408247397,1773310238915,-500.0,0.00019781,2]
[408247398,1773310238924,-417.735402,0.00019781,2]
[408247399,1773310238933,-417.735402,0.00019781,2]
[408247400,1773310238942,-417.735402,0.00019781,2]
[408247401,1773310238951,-417.735402,0.00019781,2]
[408247402,1773310238960,-151.0,0.00019797,2]
[408247403,1773310238969,-150.0,0.000198,30]
[408247404,1773310238979,-444.0,0.00019836,2]
[408247405,1773310238988,-173.74396754,0.00019836,2]
[408247406,1773310238996,-500.0,0.00019836,2]
[408247407,1773310239007,-288.22060755,0.00019836,2]
[408247408,1773310239015,-163.01,0.0001986,2]
[408247409,1773310239024,-10501.58089548,0.0001987,2]
[408247410,1773310239900,-151.0,0.00018969,2]
[408247411,1773310239910,-417.9,0.0001987,2]
[408247412,1773310239923,-1393.20373301,0.0001987,2]
[408247413,1773310239954,-621.86898814,0.0001987,2]
[408247414,1773310240009,-4471.23329559,0.0001987,2]
[408247416,1773310240019,-151.0,0.0001987,2]
[408247418,1773310240028,-151.0,0.0001987,2]
[408247420,1773310240037,-150.14636363,0.00019873,2]
[408247421,1773310240046,-359.0,0.00019881,2]
[408247422,1773310240055,-163.01,0.0001989,2]
[408247424,1773310240064,-444.0,0.0001989,2]
[408247425,1773310240073,-500.0,0.0001989,2]
[408247427,1773310240082,-200.0,0.0001989,2]
[408247428,1773310240091,-151.0,0.00019897,2]
[408247429,1773310240100,-500.0,0.00019899,2]
[408247430,1773310240109,-500.0,0.00019899,2]
[408247431,1773310240128,-500.0,0.00019899,2]
[408247432,1773310240142,-153.534323,0.00019899,2]
[408247433,1773310240151,-500.0,0.00019899,2]
[408247434,1773310240160,-500.0,0.00019899,2]
[408247435,1773310240170,-500.0,0.00019899,2]
[408247436,1773310240180,-501.77338633,0.00019899,2]
[408247437,1773310240190,-500.0,0.00019899,2]
[408247438,1773310240199,-500.0,0.00019899,2]
[408247439,1773310240212,-300.64337181,0.000199,6]
[408247440,1773310240221,-596.16238911,0.000199,6]
[408247441,1773310240231,-546.58978166,0.000199,6]
[408247442,1773310240240,-605.79628037,0.000199,6]
[408247443,1773310240249,-1772.91371145,0.000199,2]
[408247458,1773310242580,-44.08962239,0.00019624,2]
[408247459,1773310242706,-2416.91037761,0.00019624,2]
[408247460,1773310242716,-136550.85128855,0.000199,2]
[408247461,1773310242726,-1000.0,0.000199,2]
[408247462,1773310242736,-230.385187,0.000199,2]
[408247463,1773310242745,-230.385187,0.000199,2]
[408247464,1773310242754,-230.385187,0.000199,2]
[408247465,1773310242763,-230.385187,0.000199,2]
[408247466,1773310242773,-151.0,0.000199,2]
[408247467,1773310242783,-161.847445,0.000199,2]
[408247468,1773310242792,-341.277743,0.000199,2]
[408247469,1773310242801,-341.277743,0.000199,2]
[408247470,1773310242811,-341.277743,0.000199,2]
[408247472,1773310242819,-341.277743,0.000199,2]
[408247474,1773310242829,-341.277743,0.000199,2]
[408247476,1773310242838,-341.277743,0.000199,2]
[408247478,1773310242847,-341.277743,0.000199,2]
[408247480,1773310242856,-341.277743,0.000199,2]
[408247481,1773310242865,-417.735402,0.000199,2]
[408247482,1773310242878,-417.735402,0.000199,2]
[408247483,1773310242887,-417.735402,0.000199,2]
[408247484,1773310242896,-417.735402,0.000199,2]
[408247485,1773310242905,-151.0,0.000199,2]
[408247486,1773310242915,-151.0,0.000199,2]
[408247488,1773310242924,-151.0,0.000199,2]
[408247489,1773310242933,-151.0,0.000199,2]
[408247490,1773310242943,-151.0,0.000199,2]
[408247491,1773310242952,-151.0,0.000199,2]
[408247492,1773310242961,-151.0,0.000199,2]
[408247493,1773310242970,-189.26219854,0.000199,2]
[408247494,1773310242980,-151.0,0.000199,2]
[408247495,1773310242989,-151.0,0.000199,2]
[408247496,1773310242999,-151.0,0.000199,2]
[408247497,1773310243009,-713.72476074,0.000199,2]
[408247498,1773310243232,-787.08823035,0.000199,2]
[408247499,1773310243244,-5524.82204042,0.000199,2]
[408247500,1773310243254,-616.25745194,0.000199,2]
[408247501,1773310243264,-151.0,0.000199,2]
[408247502,1773310243273,-151.0,0.000199,2]
[408247503,1773310243282,-444.0,0.00019945,2]
[408247504,1773310243291,-500.0,0.00019945,2]
[408247505,1773310243300,-153.54659123,0.00019967,2]
[408247506,1773310243309,-309.0,0.00019973,2]
[408247507,1773310243318,-150.0,0.00019974,2]
[408247508,1773310243327,-150.0,0.00019974,2]
[408247509,1773310243336,-150.0,0.00019974,2]
[408247510,1773310243345,-4033.94,0.00019989,2]
[408247511,1773310243355,-185.2199898,0.0001999,2]
[408247512,1773310243364,-163.01,0.0001999,2]
[408247513,1773310243374,-5061.56,0.0001999,2]
[408247514,1773310243383,-2051.8887707,0.00019997,2]
[408247515,1773310243392,-8190.6329308,0.00019997,2]
[408247516,1773310243405,-848.0,0.00019999,2]
[408247517,1773310243414,-300.0,0.00019999,2]
[408247518,1773310243424,-310.24933161,0.00019999,2]
[408247519,1773310243433,-300.0,0.00019999,2]
[408247520,1773310243442,-672.44576879,0.00019999,2]
[408247521,1773310243451,-367.14987977,0.00019999,2]
[408247522,1773310243461,-500.0,0.00019999,2]
[408247523,1773310243470,-500.0,0.00019999,2]
[408247524,1773310243479,-500.0,0.00019999,2]
[408247525,1773310243488,-514.89612966,0.00019999,2]
[408247526,1773310243498,-500.0,0.00019999,2]
[408247527,1773310243508,-500.0,0.00019999,2]
[408247528,1773310243517,-500.0,0.00019999,2]
[408247529,1773310243526,-517.33931831,0.00019999,2]
[408247530,1773310243535,-500.0,0.00019999,2]
[408247531,1773310243545,-500.0,0.00019999,2]
[408247532,1773310243555,-500.0,0.00019999,2]
[408247533,1773310243564,-500.0,0.00019999,2]
[408247534,1773310243574,-619.79634777,0.00019999,2]
[408247535,1773310243584,-500.0,0.00019999,2]
[408247536,1773310243594,-500.0,0.00019999,2]
[408247537,1773310243606,-308.08,0.00019999,2]